fUSD/lending_fUSD_20250507
["ID","MTS","AMOUNT","RATE_DAILY","PERIOD"]
[360180728,1746604241665,-450.0,0.00019526,2]
[360180729,1746604241675,-450.0,0.00019526,2]
[360180730,1746604241685,-450.0,0.00019526,2]
[360180731,1746604241695,-450.0,0.00019526,2]
[360180732,1746604241706,-180.54758061,0.00019526,2]
[360180733,1746604241720,-450.0,0.00019526,2]
[360180734,1746604241735,-450.0,0.00019526,2]
[360180735,1746604241748,-450.0,0.00019526,2]
[360180736,1746604241759,-450.0,0.00019526,2]
[360180737,1746604241771,-450.0,0.00019526,2]
[360180738,1746604241785,-450.0,0.00019526,2]
[360180739,1746604241797,-467.35199427,0.00019526,2]
[360180740,1746604241810,-450.0,0.00019526,2]
[360180741,1746604241823,-1654.39,0.00019526,2]
[360180742,1746604241837,-450.0,0.00019526,2]
[360180743,1746604241849,-450.0,0.00019526,2]
[360180744,1746604241862,-450.0,0.00019526,2]
[360180745,1746604241874,-450.0,0.00019526,2]
[360180746,1746604241885,-845.41,0.00019526,2]
[360180747,1746604241900,-450.0,0.00019526,2]
[360180748,1746604241913,-450.0,0.00019526,2]
[360180749,1746604241926,-450.0,0.00019526,2]
[360180750,1746604241940,-450.0,0.00019526,2]
[360180751,1746604241953,-450.0,0.00019526,2]
[360180752,1746604241967,-465.12372209,0.00019526,2]
[360180753,1746604241980,-988.09,0.00019526,2]
[360180754,1746604241992,-450.0,0.00019526,2]
[360180755,1746604242005,-500.0,0.00019526,2]
[360180756,1746604242018,-450.0,0.00019526,2]
[360180757,1746604242031,-450.0,0.00019526,2]
[360180758,1746604242044,-450.0,0.00019526,2]
[360180759,1746604242056,-463.13181621,0.00019526,2]
[360180760,1746604242068,-450.0,0.00019526,2]
[360180761,1746604242080,-450.0,0.00019526,2]
[360180762,1746604242094,-450.0,0.00019526,2]
[360180763,1746604242106,-522.9463058,0.00019526,2]
[360180764,1746604242118,-450.0,0.00019526,2]
[360180765,1746604242131,-450.0,0.00019526,2]
[360180766,1746604242141,-450.0,0.00019526,2]
[360180767,1746604242152,-450.0,0.00019526,2]
[360180768,1746604242164,-450.0,0.00019526,2]
[360180769,1746604242178,-450.0,0.00019526,2]
[360180770,1746604242191,-500.0,0.00019526,2]
[360180771,1746604242202,-896.45,0.00019526,2]
[360180772,1746604242212,-450.0,0.00019526,2]
[360180773,1746604242222,-450.0,0.00019526,2]
[360180774,1746604242234,-751.6,0.00019526,2]
[360180775,1746604242246,-547.43514998,0.00019526,2]
[360180776,1746604242261,-498.69457789,0.00019526,2]
[360180777,1746604242272,-450.0,0.00019526,2]
[360180778,1746604242284,-450.0,0.00019526,2]
[360180779,1746604242294,-450.0,0.00019526,2]
[360180780,1746604242305,-450.0,0.00019526,2]
[360180781,1746604242316,-884.59,0.00019526,2]
[360180782,1746604242328,-450.0,0.00019526,2]
[360180783,1746604242342,-450.0,0.00019526,2]
[360180784,1746604242354,-471.46,0.00019526,2]
[360180785,1746604242366,-1696.15,0.00019526,2]
[360180786,1746604242378,-1675.84,0.00019526,2]
[360180787,1746604242389,-450.0,0.00019526,2]
[360180788,1746604242401,-450.0,0.00019526,2]
[360180789,1746604242413,-453.01171395,0.00019526,2]
[360180790,1746604242424,-450.0,0.00019526,2]
[360180791,1746604242436,-450.0,0.00019526,2]
[360180792,1746604242447,-450.0,0.00019526,2]
[360180793,1746604242459,-450.0,0.00019526,2]
[360180794,1746604242470,-450.0,0.00019526,2]
[360180795,1746604242482,-180.20392329,0.00019526,2]
[360180796,1746604242493,-450.0,0.00019526,2]
[360180797,1746604242505,-450.0,0.00019526,2]
[360180798,1746604242517,-450.0,0.00019526,2]
[360180799,1746604242528,-1702.18,0.00019526,2]
[360180801,1746604242539,-450.0,0.00019526,2]
[360180802,1746604242551,-524.14,0.00019526,2]
[360180804,1746604242562,-450.0,0.00019526,2]
[360180806,1746604242573,-450.99,0.00019526,2]
[360180807,1746604242584,-170.44771505,0.00019526,2]
[360180808,1746604242596,-450.0,0.00019526,2]
[360180809,1746604242608,-450.0,0.00019526,2]
[360180810,1746604242620,-523.73,0.00019526,2]
[360180811,1746604242631,-450.0,0.00019526,2]
[360180813,1746604242644,-359.34,0.00019526,2]
[360180815,1746604242655,-464.141267,0.00019526,2]
[360180818,1746604242667,-361.49376082,0.00019526,2]
[360180820,1746604242679,-450.0,0.00019526,2]
[360180822,1746604242691,-248.93723622,0.00019526,2]
[360180824,1746604242703,-450.0,0.00019526,2]
[360180825,1746604242716,-450.0,0.00019526,2]
[360180826,1746604242728,-450.0,0.00019526,2]
[360180827,1746604242741,-450.0,0.00019526,2]
[360180828,1746604242753,-450.0,0.00019526,2]
[360180829,1746604242766,-1602.3,0.00019526,2]
[360180830,1746604242778,-542.8621849,0.00019526,2]
[360180832,1746604242789,-461.0644296,0.00019526,2]
[360180833,1746604242800,-450.0,0.00019526,2]
[360180834,1746604242812,-1716.0,0.00019526,2]
[360180835,1746604242824,-450.0,0.00019526,2]
[360180836,1746604242835,-450.0,0.00019526,2]
[360180837,1746604242847,-450.0,0.00019526,2]
[360180838,1746604242861,-450.0,0.00019526,2]
[360180839,1746604242874,-450.0,0.00019526,2]
[360180840,1746604242885,-450.0,0.00019526,2]
[360180841,1746604242897,-455.56392401,0.00019526,2]
[360180842,1746604242909,-450.0,0.00019526,2]
[360180843,1746604242920,-1945.07,0.00019526,2]
[360180844,1746604242933,-450.0,0.00019526,2]
[360180845,1746604242944,-450.0,0.00019526,2]
[360180846,1746604242956,-490.0,0.00019526,2]
[360180847,1746604242967,-186.28222241,0.00019526,2]
[360180848,1746604242979,-450.0,0.00019526,2]
[360180849,1746604242990,-450.0,0.00019526,2]
[360180850,1746604243001,-450.0,0.00019526,2]
[360180851,1746604243013,-450.0,0.00019526,2]
[360180852,1746604243024,-470.0,0.00019526,2]
[360180853,1746604243035,-492.01723161,0.00019526,2]
[360180854,1746604243047,-450.0,0.00019526,2]
[360180855,1746604243058,-450.0,0.00019526,2]
[360180856,1746604243070,-973.12,0.00019526,2]
[360180857,1746604243082,-450.0,0.00019526,2]
[360180858,1746604243093,-450.0,0.00019526,2]
[360180859,1746604243105,-156.78321947,0.00019526,2]
[360180860,1746604243116,-450.0,0.00019526,2]
[360180861,1746604243127,-450.0,0.00019526,2]
[360180862,1746604243139,-450.0,0.00019526,2]
[360180863,1746604243150,-450.0,0.00019526,2]
[360180864,1746604243162,-450.0,0.00019526,2]
[360180865,1746604243173,-450.0,0.00019526,2]
[360180866,1746604243184,-516.91728369,0.00019526,2]
[360180868,1746604243195,-207.09277687,0.00019526,2]
[360180869,1746604243205,-450.0,0.00019526,2]
[360180870,1746604243216,-450.0,0.00019526,2]
[360180871,1746604243227,-753.37,0.00019526,2]
[360180872,1746604243238,-450.0,0.00019526,2]
[360180874,1746604243249,-450.0,0.00019526,2]
[360180875,1746604243260,-200.0,0.00019527,2]
[360180876,1746604243271,-520.22,0.00019527,2]
[360180877,1746604243282,-450.0,0.00019527,2]
[360180878,1746604243293,-450.0,0.00019527,2]
[360180879,1746604243304,-450.0,0.00019527,2]
[360180880,1746604243314,-410.4912142,0.00019527,2]
[360180881,1746604243326,-450.0,0.00019527,2]
[360180882,1746604243337,-450.0,0.00019527,2]
[360180883,1746604243348,-493.36161209,0.00019527,2]
[360180884,1746604243360,-450.0,0.00019527,2]
[360180885,1746604243371,-470.0,0.00019527,2]
[360180886,1746604243382,-450.0,0.00019527,2]
[360180887,1746604243393,-300.89189137,0.00019527,2]
[360180889,1746604243405,-450.0,0.00019527,2]
[360180891,1746604243416,-450.0,0.00019527,2]
[360180893,1746604243427,-490.0,0.00019527,2]
[360180894,1746604243438,-453.76698098,0.00019527,2]
[360180895,1746604243449,-450.0,0.00019527,2]
[360180896,1746604243460,-450.0,0.00019527,2]
[360180897,1746604243471,-450.0,0.00019527,2]
[360180898,1746604243482,-450.0,0.00019527,2]
[360180899,1746604243493,-450.0,0.00019527,2]
[360180900,1746604243505,-450.0,0.00019527,2]
[360180901,1746604243516,-450.0,0.00019527,2]
[360180902,1746604243527,-450.0,0.00019527,2]
[360180903,1746604243539,-450.0,0.00019527,2]
[360180904,1746604243551,-450.0,0.00019527,2]
[360180905,1746604243562,-450.0,0.00019527,2]
[360180906,1746604243573,-450.0,0.00019527,2]
[360180907,1746604243585,-450.0,0.00019527,2]
[360180908,1746604243596,-450.0,0.00019527,2]
[360180909,1746604243606,-450.0,0.00019527,2]
[360180910,1746604243616,-450.0,0.00019527,2]
[360180911,1746604243625,-490.0,0.00019527,2]
[360180912,1746604243635,-450.0,0.00019527,2]
[360180913,1746604243644,-450.0,0.00019527,2]
[360180914,1746604243653,-243.84929202,0.00019527,2]
[360180915,1746604243663,-659.54,0.00019527,2]
[360180916,1746604243673,-450.0,0.00019527,2]
[360180917,1746604243682,-450.0,0.00019527,2]
[360180918,1746604243692,-1800.94,0.00019527,2]
[360180919,1746604243701,-450.0,0.00019527,2]
[360180920,1746604243711,-450.0,0.00019527,2]
[360180921,1746604243721,-495.05021901,0.00019527,2]
[360180922,1746604243730,-450.0,0.00019527,2]
[360180923,1746604243742,-289.85735079,0.00019527,2]
[360180924,1746604243752,-500.0,0.00019527,2]
[360180925,1746604243761,-541.26149482,0.00019527,2]
[360180926,1746604243771,-450.0,0.00019527,2]
[360180927,1746604243780,-450.0,0.00019527,2]
[360180928,1746604243790,-470.0,0.00019527,2]
[360180929,1746604243800,-318.22287592,0.00019527,2]
[360180930,1746604243810,-450.0,0.00019527,2]
[360180931,1746604243820,-181.02728098,0.00019527,2]
[360180932,1746604243829,-450.0,0.00019527,2]
[360180933,1746604244135,-450.0,0.00019527,2]
[360180934,1746604244163,-450.0,0.00019527,2]
[360180935,1746604244179,-450.0,0.00019527,2]
[360180936,1746604244189,-522.72477206,0.00019527,2]
[360180937,1746604244199,-450.0,0.00019527,2]
[360180938,1746604244208,-450.0,0.00019527,2]
[360180939,1746604244219,-248.85891665,0.00019527,2]
[360180940,1746604244230,-450.0,0.00019527,2]
[360180941,1746604244240,-450.0,0.00019527,2]
[360180942,1746604244250,-450.0,0.00019527,2]
[360180943,1746604244260,-450.0,0.00019527,2]
[360180944,1746604244269,-450.0,0.00019527,2]
[360180945,1746604244279,-450.0,0.00019527,2]
[360180946,1746604244289,-450.0,0.00019527,2]
[360180947,1746604244299,-450.0,0.00019527,2]
[360180948,1746604244308,-920.51,0.00019527,2]
[360180949,1746604244318,-450.0,0.00019527,2]
[360180950,1746604244328,-450.0,0.00019527,2]
[360180951,1746604244338,-462.95685112,0.00019527,2]
[360180952,1746604244347,-450.0,0.00019527,2]
[360180953,1746604244356,-490.4396838,0.00019527,2]
[360180954,1746604244365,-450.0,0.00019527,2]
[360180955,1746604244375,-450.0,0.00019527,2]
[360180956,1746604244384,-470.0,0.00019527,2]
[360180957,1746604244393,-165.25,0.00019527,2]
[360180958,1746604244401,-704.66,0.00019527,2]
[360180959,1746604244411,-450.0,0.00019527,2]
[360180960,1746604244420,-450.0,0.00019527,2]
[360180961,1746604244429,-470.0,0.00019527,2]
[360180962,1746604244438,-787.03,0.00019527,2]
[360180963,1746604244447,-832.04,0.00019527,2]
[360180964,1746604244456,-478.19333598,0.00019527,2]
[360180965,1746604244465,-450.0,0.00019527,2]
[360180966,1746604244474,-477.02561307,0.00019527,2]
[360180967,1746604244483,-450.0,0.00019527,2]
[360180968,1746604244492,-450.0,0.00019527,2]
[360180969,1746604244505,-450.0,0.00019527,2]
[360180970,1746604244727,-470.0,0.00019527,2]
[360180971,1746604244737,-450.0,0.00019527,2]
[360180972,1746604244746,-450.0,0.00019527,2]
[360180973,1746604244756,-231.03785791,0.00019527,2]
[360180974,1746604244766,-189.56294831,0.00019527,2]
[360180975,1746604244776,-450.0,0.00019527,2]
[360180976,1746604244786,-450.0,0.00019527,2]
[360180977,1746604244795,-450.0,0.00019527,2]
[360180978,1746604244804,-496.85,0.00019527,2]
[360180979,1746604244814,-450.0,0.00019527,2]
[360180980,1746604244823,-450.0,0.00019527,2]
[360180981,1746604244832,-450.0,0.00019527,2]
[360180982,1746604244842,-450.0,0.00019527,2]
[360180983,1746604244852,-478.78483221,0.00019527,2]
[360180984,1746604244863,-450.0,0.00019527,2]
[360180985,1746604244873,-450.0,0.00019527,2]
[360180986,1746604244883,-450.0,0.00019527,2]
[360180987,1746604244892,-450.0,0.00019527,2]
[360180988,1746604244902,-563.95841301,0.00019527,2]
[360180989,1746604244912,-450.0,0.00019527,2]
[360180990,1746604244921,-450.0,0.00019527,2]
[360180991,1746604244932,-450.0,0.00019527,2]
[360180992,1746604244942,-450.0,0.00019527,2]
[360180993,1746604244951,-450.0,0.00019527,2]
[360180994,1746604244960,-450.0,0.00019527,2]
[360180995,1746604244970,-450.0,0.00019527,2]
[360180996,1746604244979,-450.0,0.00019527,2]
[360180997,1746604244989,-467.09684521,0.00019527,2]
[360180998,1746604244998,-1000.0,0.00019527,2]
[360180999,1746604245007,-1000.0,0.00019527,2]
[360181000,1746604245016,-1000.0,0.00019527,2]
[360181001,1746604245026,-1000.0,0.00019527,2]
[360181002,1746604245035,-1000.0,0.00019527,2]
[360181003,1746604245045,-1000.0,0.00019527,2]
[360181004,1746604245054,-1000.0,0.00019527,2]
[360181005,1746604245064,-1000.0,0.00019527,2]
[360181006,1746604245073,-1000.0,0.00019527,2]
[360181007,1746604245083,-151.0,0.00019528,2]
[360181008,1746604245092,-151.0,0.00019528,2]
[360181009,1746604245101,-154.71204612,0.00019528,2]
[360181010,1746604245110,-443.48081316,0.00019528,2]
[360181011,1746604245120,-151.0,0.0001954,2]
[360181012,1746604245134,-151.0,0.0001954,2]
[360181013,1746604245143,-151.0,0.00019585,2]
[360181014,1746604245153,-668.65185757,0.00019585,2]
[360181015,1746604245163,-264.93909534,0.00019595,2]
[360181016,1746604245172,-194.71563709,0.00019595,2]
[360181017,1746604245182,-178.1982818,0.00019595,2]
[360181018,1746604245191,-169.00199421,0.00019595,2]
[360181019,1746604245201,-225.08365624,0.00019595,2]
[360181020,1746604245210,-500.0,0.00019595,2]
[360181021,1746604245219,-225.24549005,0.00019595,2]
[360181022,1746604245230,-500.0,0.00019595,2]
[360181023,1746604245239,-500.0,0.00019595,2]
[360181024,1746604245249,-500.0,0.00019595,2]
[360181025,1746604245259,-500.0,0.00019595,2]
[360181026,1746604245268,-500.0,0.00019595,2]
[360181027,1746604245277,-500.0,0.00019595,2]
[360181028,1746604245287,-500.0,0.00019595,2]
[360181029,1746604245296,-500.0,0.00019595,2]
[360181030,1746604245306,-457.67184303,0.00019595,2]
[360181031,1746604245315,-630.64,0.00019596,2]
[360181032,1746604245325,-450.0,0.00019596,2]
[360181033,1746604245334,-450.0,0.00019596,2]
[360181034,1746604245343,-450.0,0.00019596,2]
[360181035,1746604245352,-450.0,0.00019596,2]
[360181036,1746604245362,-450.0,0.00019596,2]
[360181037,1746604245371,-1391.651597,0.00019596,2]
[360181038,1746604245380,-450.0,0.00019596,2]
[360181039,1746604245389,-5682.872913,0.00019596,2]
[360181040,1746604245399,-450.0,0.00019596,2]
[360181041,1746604245408,-252.11917569,0.00019596,2]
[360181042,1746604245418,-450.0,0.00019596,2]
[360181043,1746604245427,-418.05230118,0.00019596,2]
[360181044,1746604245437,-450.0,0.00019596,2]
[360181045,1746604245446,-450.0,0.00019596,2]
[360181046,1746604245455,-450.0,0.00019596,2]
[360181047,1746604245464,-548.11431461,0.00019596,2]
[360181048,1746604245473,-450.0,0.00019596,2]
[360181049,1746604245482,-450.0,0.00019596,2]
[360181051,1746604245492,-496.24,0.00019596,2]
[360181053,1746604245501,-461.41,0.00019596,2]
[360181054,1746604245510,-450.0,0.00019596,2]
[360181055,1746604245519,-450.0,0.00019596,2]
[360181056,1746604245528,-450.0,0.00019596,2]
[360181057,1746604245538,-474.9,0.00019596,2]
[360181059,1746604245547,-450.0,0.00019596,2]
[360181060,1746604245556,-450.0,0.00019596,2]
[360181061,1746604245566,-703.21,0.00019596,2]
[360181062,1746604245575,-450.0,0.00019596,2]
[360181064,1746604245585,-450.0,0.00019596,2]
[360181065,1746604245595,-490.0,0.00019596,2]
[360181066,1746604245604,-450.0,0.00019596,2]
[360181067,1746604245613,-450.0,0.00019596,2]
[360181068,1746604245623,-450.0,0.00019596,2]
[360181069,1746604245632,-250.0,0.00019596,2]
[360181070,1746604245641,-680.75,0.00019596,2]
[360181071,1746604245651,-450.0,0.00019596,2]
[360181072,1746604245661,-1289.88,0.00019596,2]
[360181073,1746604245670,-316.76869888,0.00019596,2]
[360181074,1746604245679,-576.53,0.00019596,2]
[360181075,1746604245688,-588.75150315,0.00019596,2]
[360181076,1746604245698,-965.86,0.00019596,2]
[360181077,1746604245708,-920.1,0.00019596,2]
[360181078,1746604245717,-472.55,0.00019596,2]
[360181079,1746604245726,-450.0,0.00019596,2]
[360181080,1746604245735,-1788.14,0.00019596,2]
[360181081,1746604245744,-450.0,0.00019596,2]
[360181082,1746604245753,-450.0,0.00019596,2]
[360181083,1746604245762,-450.0,0.00019596,2]
[360181084,1746604245771,-450.0,0.00019596,2]
[360181085,1746604245780,-544.68,0.00019596,2]
[360181086,1746604245789,-450.0,0.00019596,2]
[360181087,1746604245799,-450.0,0.00019596,2]
[360181088,1746604245810,-450.0,0.00019596,2]
[360181089,1746604245819,-450.0,0.00019596,2]
[360181090,1746604245828,-450.0,0.00019596,2]
[360181091,1746604245838,-450.0,0.00019596,2]
[360181092,1746604245847,-450.0,0.00019596,2]
[360181093,1746604245856,-277.09929285,0.00019596,2]
[360181094,1746604245876,-469.11070715,0.00019596,2]
[360181095,1746604245885,-5.15988046,0.00019596,2]
[360181096,1746604245903,-621.58011954,0.00019596,2]
[360181097,1746604245913,-210.01990384,0.00019596,2]
[360181098,1746604245924,-239.98009616,0.00019596,2]
[360181099,1746604245933,-450.0,0.00019596,2]
[360181100,1746604245943,-450.0,0.00019596,2]
[360181101,1746604245953,-450.0,0.00019596,2]
[360181102,1746604245962,-450.0,0.00019596,2]
[360181103,1746604245971,-83.49978691,0.00019596,2]
[360181104,1746604245987,-366.50021309,0.00019596,2]
[360181105,1746604245996,-494.58513202,0.00019596,2]
[360181106,1746604246005,-450.0,0.00019596,2]
[360181107,1746604246014,-819.17,0.00019596,2]
[360181108,1746604246024,-450.0,0.00019596,2]
[360181109,1746604246033,-450.0,0.00019596,2]
[360181110,1746604246043,-9475.8771466,0.00019596,2]
[360181118,1746604246253,-500.0,0.00019596,2]
[360181119,1746604246265,-68244.8928534,0.00019596,2]
[360181120,1746604246274,-450.0,0.00019596,2]
[360181121,1746604246283,-450.0,0.00019596,2]
[360181122,1746604246292,-478.6,0.00019596,2]
[360181123,1746604246301,-450.0,0.00019596,2]
[360181124,1746604246311,-450.0,0.00019596,2]
[360181125,1746604246320,-470.0,0.00019596,2]
[360181126,1746604246330,-450.0,0.00019596,2]
[360181127,1746604246339,-450.0,0.00019596,2]
[360181128,1746604246348,-568.66777978,0.00019596,2]
[360181129,1746604246358,-280.89126721,0.00019596,2]
[360181130,1746604246369,-221.34923831,0.00019596,2]
[360181131,1746604246378,-450.0,0.00019596,2]
[360181132,1746604246387,-450.0,0.00019596,2]
[360181133,1746604246397,-450.0,0.00019596,2]
[360181134,1746604246406,-450.0,0.00019596,2]
[360181135,1746604246415,-450.0,0.00019596,2]
[360181136,1746604246425,-342.65,0.00019596,2]
[360181137,1746604246434,-450.0,0.00019596,2]
[360181138,1746604246443,-490.0,0.00019596,2]
[360181139,1746604246452,-297.77126784,0.00019596,2]
[360181140,1746604246637,-152.22873216,0.00019596,2]
[360181141,1746604246647,-450.0,0.00019596,2]
[360181142,1746604246658,-450.0,0.00019596,2]
[360181143,1746604246667,-450.0,0.00019596,2]
[360181144,1746604246676,-450.0,0.00019596,2]
[360181145,1746604246686,-450.0,0.00019596,2]
[360181146,1746604246695,-1654.39,0.00019596,2]
[360181147,1746604246705,-450.0,0.00019596,2]
[360181148,1746604246715,-531.45327096,0.00019596,2]
[360181149,1746604246725,-845.41,0.00019596,2]
[360181150,1746604246735,-450.0,0.00019596,2]
[360181151,1746604246744,-450.0,0.00019596,2]
[360181152,1746604246754,-450.0,0.00019596,2]
[360181153,1746604246763,-450.0,0.00019596,2]
[360181154,1746604246772,-450.0,0.00019596,2]
[360181155,1746604246781,-988.09,0.00019596,2]
[360181156,1746604246791,-500.0,0.00019596,2]
[360181157,1746604246800,-525.60155823,0.00019596,2]
[360181158,1746604246810,-450.0,0.00019596,2]
[360181159,1746604246819,-450.0,0.00019596,2]
[360181160,1746604246829,-450.0,0.00019596,2]
[360181161,1746604246839,-471.97920847,0.00019596,2]
[360181162,1746604246848,-450.0,0.00019596,2]
[360181163,1746604246861,-450.0,0.00019596,2]
[360181164,1746604246870,-450.0,0.00019596,2]
[360181165,1746604246879,-500.0,0.00019596,2]
[360181166,1746604246889,-896.45,0.00019596,2]
[360181167,1746604246899,-512.62556938,0.00019596,2]
[360181168,1746604246908,-450.0,0.00019596,2]
[360181169,1746604246918,-751.6,0.00019596,2]
[360181170,1746604246927,-527.76506426,0.00019596,2]
[360181171,1746604246938,-450.0,0.00019596,2]
[360181172,1746604246947,-884.59,0.00019596,2]
[360181173,1746604246956,-509.53106383,0.00019596,2]
[360181174,1746604246966,-471.46,0.00019596,2]
[360181175,1746604246976,-1696.15,0.00019596,2]
[360181176,1746604246985,-1675.84,0.00019596,2]
[360181177,1746604246995,-190.62917693,0.00019596,2]
[360181178,1746604247004,-450.0,0.00019596,2]
[360181179,1746604247014,-450.0,0.00019596,2]
[360181180,1746604247023,-450.0,0.00019596,2]
[360181181,1746604247033,-450.0,0.00019596,2]
[360181182,1746604247043,-450.0,0.00019596,2]
[360181183,1746604247053,-450.0,0.00019596,2]
[360181184,1746604247063,-450.0,0.00019596,2]
[360181185,1746604247072,-1702.18,0.00019596,2]
[360181186,1746604247082,-450.0,0.00019596,2]
[360181187,1746604247091,-524.14,0.00019596,2]
[360181188,1746604247101,-450.99,0.00019596,2]
[360181189,1746604247111,-450.0,0.00019596,2]
[360181190,1746604247120,-450.0,0.00019596,2]
[360181191,1746604247130,-523.73,0.00019596,2]
[360181192,1746604247140,-562.03052102,0.00019596,2]
[360181193,1746604247150,-450.0,0.00019596,2]
[360181194,1746604247161,-246.75586491,0.00019596,2]
[360181195,1746604247171,-450.0,0.00019596,2]
[360181196,1746604247180,-1602.3,0.00019596,2]
[360181197,1746604247190,-1716.0,0.00019596,2]
[360181198,1746604247200,-450.0,0.00019596,2]
[360181199,1746604247209,-450.0,0.00019596,2]
[360181200,1746604247218,-450.0,0.00019596,2]
[360181201,1746604247227,-1945.07,0.00019596,2]
[360181202,1746604247237,-450.0,0.00019596,2]
[360181203,1746604247247,-450.0,0.00019596,2]
[360181204,1746604247256,-450.0,0.00019596,2]
[360181205,1746604247265,-450.0,0.00019596,2]
[360181206,1746604247275,-450.0,0.00019596,2]
[360181207,1746604247284,-973.12,0.00019596,2]
[360181208,1746604247293,-151.0,0.00019596,2]
[360181209,1746604247303,-450.0,0.00019596,2]
[360181210,1746604247312,-450.0,0.00019596,2]
[360181211,1746604247323,-450.0,0.00019596,2]
[360181212,1746604247334,-450.0,0.00019596,2]
[360181213,1746604247344,-450.0,0.00019596,2]
[360181214,1746604247354,-450.0,0.00019596,2]
[360181215,1746604247364,-753.37,0.00019596,2]
[360181216,1746604247374,-450.0,0.00019596,2]
[360181217,1746604247383,-550.53,0.00019597,2]
[360181218,1746604247393,-450.0,0.00019597,2]
[360181219,1746604247402,-323.01539512,0.00019597,2]
[360181220,1746604247412,-450.0,0.00019597,2]
[360181221,1746604247580,-450.0,0.00019597,2]
[360181222,1746604247592,-450.0,0.00019597,2]
[360181223,1746604247601,-450.0,0.00019597,2]
[360181224,1746604247611,-500.85368498,0.00019597,2]
[360181225,1746604247620,-542.7914018,0.00019597,2]
[360181226,1746604247630,-450.0,0.00019597,2]
[360181227,1746604247639,-495.11750348,0.00019597,2]
[360181228,1746604247649,-561.49947322,0.00019597,2]
[360181229,1746604247659,-450.0,0.00019597,2]
[360181230,1746604247669,-450.0,0.00019597,2]
[360181231,1746604247678,-450.0,0.00019597,2]
[360181232,1746604247688,-450.0,0.00019597,2]
[360181233,1746604247698,-450.0,0.00019597,2]
[360181234,1746604247707,-450.0,0.00019597,2]
[360181235,1746604247717,-450.0,0.00019597,2]
[360181236,1746604247727,-520.0,0.00019597,2]
[360181237,1746604247737,-450.0,0.00019597,2]
[360181238,1746604247747,-154.50612705,0.00019597,2]
[360181239,1746604247756,-384.43553343,0.00019597,2]
[360181240,1746604247766,-450.0,0.00019597,2]
[360181241,1746604247775,-572.35012035,0.00019597,2]
[360181242,1746604247785,-470.0,0.00019597,2]
[360181243,1746604247795,-450.0,0.00019597,2]
[360181244,1746604247804,-450.0,0.00019597,2]
[360181245,1746604247817,-151.0,0.00019597,2]
[360181246,1746604247828,-659.54,0.00019597,2]
[360181247,1746604247838,-450.0,0.00019597,2]
[360181248,1746604247848,-151.0,0.00019597,2]
[360181249,1746604247859,-151.0,0.00019597,2]
[360181250,1746604247869,-151.0,0.00019597,2]
[360181251,1746604247879,-160.97987,0.00019597,2]
[360181252,1746604247888,-450.0,0.00019597,2]
[360181253,1746604247898,-266.813616,0.00019597,2]
[360181254,1746604247907,-450.0,0.00019597,2]